[Event "Slovakia Open 2022"]
[Site "Bratislava"]
[Date "2022.10.01"]
[Round "5.6"]
[White "Mikrut, Dariusz"]
[Black "Stevik, Patrik"]
[Result "1/2-1/2"]
[ECO "D55"]
[WhiteElo "2316"]
[BlackElo "2148"]
[Annotator "TA"]
[PlyCount "51"]
[EventDate "2022.09.30"]
[EventCountry "SVK"]
[SourceTitle "playchess.com"]
[Source "ChessBase"]
[SourceQuality "1"]
[TimeControl "2700+10"]

{[%evp 11,51,9,25,15,13,21,71,41,59,60,78,48,49,0,0,0,0,0,0,-24,-20,-22,-15,-30,-31,-25,-25,-29,-31,-34,-33,-65,-75,-84,-88,-80,-56,-62,-50,-76,-75,-90]} 1. d4 {[%emt 0:00:21]} Nf6 {[%emt 0:00:09]} 2. c4 {[%emt 0:00:03]} e6 {[%emt 0:00:03]} 3. Nf3 {[%emt 0:00:01]} d5 {[%emt 0:00:06]} 4. Bg5 {[%emt 0:00:02]} Be7 {[%emt 0:00:10]} 5. Nc3 {[%emt 0:00:02]} O-O {[%emt 0:00:10]} 6. e3 {[%emt 0:00:02]} a6 {[%emt 0:00:06]} 7. Rc1 {[%emt 0:00:15] D55: Queen's Gambit Declined: 4 Bg5 Be7: Lines without ...h6 and 6...h6 7 Bxf6.} dxc4 {[%emt 0:00:09]} 8. Bxc4 {[%emt 0:00:03]} b5 {[%emt 0:00:03]} (8... Nbd7 $11 {keeps the balance.}) 9. Bd3 {[%emt 0:00:01] White is more active. White is better.} Bb7 {[%emt 0:00:05] Against Ne4} 10. Bxf6 {[%emt 0:00:12]} Bxf6 {[%emt 0:00:03]} 11. Ne4 {[%emt 0:00:15]} (11. Qc2 $5 {[%cal Rd3h7]}) 11... Nd7 {[%emt 0:01:14]} 12. a4 {[%emt 0:00:16]} (12. Nxf6+ $14 Nxf6 13. O-O) 12... Be7 $11 {[%emt 0:01:08]} 13. O-O {[%emt 0:00:09] [#]} Rc8 $146 {[%emt 0:00:48]} ({Predecessor:} 13... b4 14. Qc2 Rc8 15. Nc5 Nxc5 16. dxc5 Bxf3 17. gxf3 g6 18. Bxa6 Ra8 19. Bb5 Qd5 {1-0 (38) Limon Olmos,I (2106)-Salazar Moreno,R (1778) Mexico City 2022}) 14. axb5 {[%emt 0:00:16]} axb5 {[%emt 0:00:03]} 15. Qb3 {[%emt 0:00:38]} b4 {[%emt 0:01:31]} 16. Rfd1 {[%emt 0:01:30]} Bd5 {[%emt 0:01:48] This bishop pair is nice.} 17. Qc2 {[%emt 0:00:09]} c5 $1 {[%emt 0:05:40]} 18. Nxc5 {[%emt 0:03:47]} Nxc5 {[%emt 0:01:29]} 19. dxc5 {[%emt 0:00:15]} Rxc5 {[%emt 0:00:16]} 20. Qb1 {[%emt 0:00:24]} Rxc1 {[%emt 0:01:33]} 21. Qxc1 {[%emt 0:05:00]} Qa8 {[%emt 0:02:26]} 22. Ne1 {[%emt 0:00:11]} Bf6 {[%emt 0:04:25]} 23. Qd2 {[%emt 0:03:30]} Qb7 {[%emt 0:01:45]} 24. Qe2 {[%emt 0:01:21]} Qc7 {[%emt 0:03:23]} 25. Bb1 {[%emt 0:06:00]} g6 {[%emt 0:01:22]} 26. Qd2 {[%emt 0:02:50] Weighted Error Value: White=0.14 (very precise) /Black=0.07 (flawless)} 1/2-1/2

[Event "Slovakia Open 2022"]
[Site "Bratislava"]
[Date "2022.10.01"]
[Round "5.7"]
[White "Novosadova, Kristyna"]
[Black "Kukelko, Alexey"]
[Result "1/2-1/2"]
[ECO "B66"]
[WhiteElo "2151"]
[BlackElo "2280"]
[Annotator "TA"]
[PlyCount "92"]
[EventDate "2022.09.30"]
[EventCountry "SVK"]
[SourceTitle "playchess.com"]
[Source "ChessBase"]
[SourceQuality "1"]
[TimeControl "2700+10"]

{[%evp 19,92,6,29,15,8,-138,-142,-138,-177,-161,-87,-89,-89,-98,-86,-128,-125,-126,-96,-127,-125,-121,-127,-191,-178,-244,-129,-133,-141,-195,-183,-243,-239,-274,-259,-253,-247,-309,-308,-285,-266,-404,-391,-443,-432,-537,-383,-639,-548,-709,-693,-546,-110,-481,-74,-85,-62,-90,-56,-110,-105,-99,-70,-303,-112,-174,-8,-8,-8,-8,-8,-8,-8,-8,-8]} 1. e4 {[%emt 0:00:08]} c5 {[%emt 0:00:03]} 2. Nf3 {[%emt 0:00:02]} d6 {[%emt 0:00:02]} 3. d4 {[%emt 0:00:02]} Nf6 {[%emt 0:00:02]} 4. Nc3 {[%emt 0:00:02]} cxd4 {[%emt 0:00:02]} 5. Nxd4 {[%emt 0:00:02]} Nc6 {[%emt 0:00:02]} 6. Bg5 {[%emt 0:00:03]} e6 {[%emt 0:00:01]} 7. Qd2 {[%emt 0:00:33]} a6 {[%emt 0:00:02]} 8. O-O-O {[%emt 0:00:42]} h6 {[%emt 0:00:14]} 9. Bh4 {[%emt 0:00:12] 9.Nxc6 is setting a new trend.} Nxe4 {[%emt 0:00:12]} 10. Qf4 {[%emt 0:07:24]} Ng5 {[%emt 0:00:42]} 11. Nxc6 {[%emt 0:00:34] B66: Sicilian: Richter-Rauzer: 7...a6 8 0-0-0 h6.} bxc6 {[%emt 0:00:01]} 12. Ne4 {[%emt 0:00:18]} (12. Qa4 $1 $11 Qb6 13. Bg3) 12... d5 $1 $17 {[%emt 0:03:05]} ({Inferior is} 12... e5 13. Qe3 (13. Bxg5 hxg5 14. Qd2 Rh6 $17) 13... Qc7 14. f4 (14. Nxg5 hxg5 15. Qxg5 f6 $15) 14... Nxe4 15. Qxe4 $15) 13. Bxg5 {[%emt 0:02:27] Black is clearly better.} hxg5 {[%emt 0:00:01]} 14. Nxg5 {[%emt 0:00:02][%csl Gg5][%cal Rf4f7]} Qf6 {[%emt 0:01:15]} (14... f6 $1 $19 {[%cal Rf6g5]} 15. Nf3 Bd6) 15. Qxf6 {[%emt 0:01:00]} gxf6 {[%emt 0:00:01]} 16. Nf3 {[%emt 0:00:02]} e5 {[%emt 0:00:14][%cal Be6e5,Be5e4][%mdl 32] [#]} 17. Be2 $146 {[%emt 0:00:40]} ({Predecessor:} 17. Ng1 Bc5 18. f3 Be3+ 19. Kb1 Bxg1 20. Rxg1 Rxh2 21. Bd3 f5 22. Rde1 e4 23. f4 {0-1 (39) Bildat,J (2240)-Swol,M (2310) Cologne 1995}) 17... Bc5 {[%emt 0:00:10]} 18. Rdf1 {[%emt 0:01:19]} Ke7 {[%emt 0:03:16]} 19. Ne1 {[%emt 0:00:17]} Be6 {[%emt 0:00:33]} 20. h4 {[%emt 0:00:38]} f5 {[%emt 0:01:43]} 21. Nf3 {[%emt 0:02:43]} (21. h5 $17) 21... e4 $1 $19 {[%emt 0:03:11]} 22. Ng5 {[%emt 0:00:11]} (22. Nd2 {keeps fighting.}) 22... Rag8 {[%emt 0:00:01]} (22... Bd7 $19 {Threatens to win with ...f6.} 23. f3 Be3+ 24. Kb1 f6) 23. Nxe6 $17 {[%emt 0:01:07]} fxe6 {[%emt 0:00:08]} ({Not} 23... Kxe6 24. g3 $17) 24. g3 {[%emt 0:06:06]} (24. Rh2 $17 {was called for.}) 24... e3 $19 {[%emt 0:00:25]} 25. fxe3 {[%emt 0:00:12]} (25. f4 $142) 25... Bxe3+ {[%emt 0:00:05]} 26. Kb1 {[%emt 0:00:05]} Rxg3 {[%emt 0:00:04]} 27. Bxa6 {[%emt 0:00:06]} f4 {[%emt 0:00:12][%cal Bf5f4,Bf4f3,Bf3f2][%mdl 32]} 28. a4 {[%emt 0:01:38]} e5 {[%emt 0:06:32]} 29. h5 {[%emt 0:02:26]} f3 {[%emt 0:03:15]} 30. a5 {[%emt 0:00:50]} (30. Re1 $142 Bd2 31. Rd1) 30... Kd6 {[%emt 0:02:22]} 31. Bb7 {[%emt 0:01:17]} e4 {[%emt 0:05:43] And now ...Kc7 would win.} 32. b4 {[%emt 0:04:19]} f2 {[%emt 0:10:24] Strongly threatening ...Bd4.} 33. Ba6 $2 {[%emt 0:01:10]} (33. h6) 33... Bd4 {[%emt 0:02:20]} 34. Ka2 {[%emt 0:01:39]} Rb8 {[%emt 0:01:05]} 35. Rb1 {[%emt 0:00:35]} e3 $2 {[%emt 0:03:19]} (35... Rg1 $19 36. c3 Rxh1 37. Rxh1 Bxc3) 36. h6 $2 {[%emt 0:00:12][%mdl 8192] [#]} (36. Be2 $17) 36... Bh8 $2 {[%emt 0:00:05]} (36... Rb5 $1 $19 {[%mdl 512] has better winning chances. White must now prevent ...e2.} 37. Bxb5 cxb5) 37. Be2 $17 {[%emt 0:00:39]} Kc7 {[%emt 0:00:16]} 38. h7 {[%emt 0:01:01][%cal Oc2c3] Against Rbg8} Rg5 {[%emt 0:00:08]} 39. a6 {[%emt 0:01:02]} (39. c3 $15) 39... d4 {[%emt 0:00:12]} 40. Ka3 {[%emt 0:00:17]} Kb6 {[%emt 0:00:03]} 41. Ka4 $2 {[%emt 0:00:14] [#]} ({White should play} 41. Rh6 $1 $15 d3 42. cxd3) 41... Ka7 $2 {[%emt 0:00:13]} (41... Ra8 $1 $19 {and Black stays clearly on top.} 42. b5 cxb5+ 43. Bxb5 Ka7) 42. Rh6 {[%emt 0:01:57] [#]} Rb6 {[%emt 0:00:07]} ({Better is} 42... Rc8 $1 $19 43. Kb3 Rc7) 43. Re6 $1 $11 {[%emt 0:01:02] The position is equal.} Re5 {[%emt 0:00:12]} 44. Rxe5 {[%emt 0:00:20] Chess con chili.} Bxe5 {[%emt 0:00:02]} 45. b5 {[%emt 0:00:55]} cxb5+ {[%emt 0:00:23]} 46. Rxb5 {[%emt 0:00:49]} Rxa6+ {[%emt 0:00:02] Weighted Error Value: White=0.55/Black=0.70} 1/2-1/2

[Event "Slovakia Open 2022"]
[Site "Bratislava"]
[Date "2022.10.01"]
[Round "5.8"]
[White "Slovak, Kilian"]
[Black "Hnatyshyn, Anastasiia"]
[Result "1-0"]
[ECO "B33"]
[WhiteElo "2278"]
[BlackElo "2087"]
[Annotator "TA"]
[PlyCount "59"]
[EventDate "2022.09.30"]
[EventCountry "SVK"]
[SourceTitle "playchess.com"]
[Source "ChessBase"]
[SourceQuality "1"]
[TimeControl "2700+10"]

{[%evp 23,59,36,41,0,6,0,10,22,37,0,37,33,52,33,455,-62,472,472,465,471,812,758,783,782,861,856,872,858,1114,1083,1743,1781,2156,1652,1589,1489,29985,29986]} 1. e4 {[%emt 0:00:03]} c5 {[%emt 0:00:03]} 2. Nf3 {[%emt 0:00:12]} Nc6 {[%emt 0:00:03]} 3. d4 {[%emt 0:00:01]} cxd4 {[%emt 0:00:03]} 4. Nxd4 {[%emt 0:00:02]} Nf6 {[%emt 0:00:02]} 5. Nc3 {[%emt 0:00:01]} e5 {[%emt 0:00:02]} 6. Ndb5 {[%emt 0:00:06]} d6 {[%emt 0:00:03]} 7. Bg5 {[%emt 0:00:06]} a6 {[%emt 0:00:02]} 8. Na3 {[%emt 0:00:06]} b5 {[%emt 0:00:02]} 9. Bxf6 {[%emt 0:00:02]} gxf6 {[%emt 0:00:02][%cal Bg7f6,Bf6f5][%mdl 32]} 10. Nd5 {[%emt 0:00:01]} f5 {[%emt 0:00:07]} 11. Bd3 {[%emt 0:01:17]} Be6 {[%emt 0:00:03]} 12. c3 {[%emt 0:00:01]} Bg7 $1 {[%emt 0:00:15]} 13. Nxb5 {[%emt 0:00:04] B33: Sicilian: Pelikan and Sveshnikov Variations.} axb5 {[%emt 0:01:17]} 14. Bxb5 {[%emt 0:00:02]} Bd7 {[%emt 0:03:26]} (14... Rc8 $5 {[%cal Re8g8]}) 15. exf5 {[%emt 0:00:13] The position is equal.} O-O {[%emt 0:01:02][%cal Be8g8,Bg8h8,Bh8g7][%mdl 32]} 16. Qg4 {[%emt 0:00:22] Inhibits Qg5. Bxc6 is the strong threat.} Kh8 {[%emt 0:00:46] aiming for ...Ra5.} 17. O-O {[%emt 0:00:24]} Rb8 {[%emt 0:01:00]} 18. a4 {[%emt 0:00:34]} Ne7 $2 {[%emt 0:01:56][%mdl 8192] [#]} (18... f6 $14) 19. Qxg7+ $3 $18 {[%emt 0:01:14][%mdl 576] Remove Defender, Decoy} Kxg7 {[%emt 0:00:16]} 20. f6+ {[%emt 0:00:01]} Kh8 {[%emt 0:01:28]} 21. fxe7 {[%emt 0:00:14]} Qc8 {[%emt 0:00:21]} (21... Qa5 $142 22. exf8=B (22. Bxd7 Qxd5 23. Rfd1 Qb7 $16) (22. exf8=N Bxb5 23. axb5 Qxb5 $16) 22... Rxf8) 22. exf8=Q+ {[%emt 0:00:16]} Qxf8 {[%emt 0:00:03]} 23. Bxd7 {[%emt 0:00:16]} Rxb2 {[%emt 0:01:11]} 24. a5 {[%emt 0:01:05][%cal Ba4a5,Ba5a6,Ba6a7][%mdl 32]} Qa8 {[%emt 0:01:33] [#]} 25. a6 $1 {[%emt 0:01:52] [#]} Rb8 $146 {[%emt 0:04:30]} (25... Qxd5 26. a7) ({Predecessor:} 25... Qa7 26. Nb4 e4 27. Nc6 Qa8 28. a7 e3 29. Rfb1 {1-0 (28) Mindeguia Guruceaga,J (2199)-Regeling,C Vlissingen 2006}) 26. a7 {[%emt 0:00:18]} Rg8 {[%emt 0:00:24]} 27. c4 {[%emt 0:00:16]} Qb7 {[%emt 0:03:47] [#]} 28. g3 $1 {[%emt 0:00:12]} Ra8 {[%emt 0:02:30] [#]} 29. Rfb1 $1 {[%emt 0:00:15]} Qxd7 {[%emt 0:00:17]} (29... Qxa7 30. Rxa7) 30. Rb8+ {[%emt 0:00:03] Weighted Error Value: White=0.12 (very precise) /Black=0.73} 1-0

[Event "Slovakia Open 2022"]
[Site "Bratislava"]
[Date "2022.10.01"]
[Round "5.9"]
[White "Vadila, Ondrej"]
[Black "Yankelevich, Lev"]
[Result "0-1"]
[ECO "B13"]
[WhiteElo "2178"]
[BlackElo "2484"]
[Annotator "TA"]
[PlyCount "74"]
[EventDate "2022.09.30"]
[EventCountry "SVK"]
[SourceTitle "playchess.com"]
[Source "ChessBase"]
[SourceQuality "1"]
[TimeControl "2700+10"]

{[%evp 9,74,0,0,6,2,-24,0,-7,56,56,60,62,62,59,67,27,59,61,58,25,29,0,9,-9,-9,-11,-23,-8,-14,-16,-15,-19,0,-19,0,-35,-18,-16,-11,-158,-177,-181,-172,-279,-279,-343,-336,-439,-449,-424,-408,-518,-518,-525,-496,-649,-646,-641,-432,-656,-652,-611,-573,-652,-643,-804,-794]} 1. d4 {[%emt 0:00:05]} Nf6 {[%emt 0:00:02]} 2. Bf4 {[%emt 0:00:03]} d5 {[%emt 0:00:05]} 3. e3 {[%emt 0:00:03]} c5 {[%emt 0:00:02]} 4. Nc3 {[%emt 0:00:02][%cal Bb1c3,Bc3b5,Bb5d6][%mdl 32]} cxd4 {[%emt 0:00:52]} 5. exd4 {[%emt 0:00:02]} Bg4 {[%emt 0:00:03]} 6. f3 {[%emt 0:02:52] Strongly threatening Nb5. B13: Caro-Kann: Exchange Variation and Panov-Botvinnik Attack.} Bd7 {[%emt 0:00:02]} 7. Bd3 {[%emt 0:00:22]} e6 {[%emt 0:01:13]} 8. Nge2 {[%emt 0:00:17] The position is equal.} Nc6 {[%emt 0:02:10] [#]} (8... a6 $11) 9. Nb5 $146 {[%emt 0:06:15] Nc7+ is the strong threat.} ({Predecessor:} 9. a3 a6 10. Qd2 Qb6 11. O-O-O Rc8 12. Qe3 Na5 13. g4 Be7 14. h4 O-O 15. h5 {1-0 (24) Jobava,B (2603)-Kosteniuk,A (2474) Chess.com INT 2021}) 9... Rc8 {[%emt 0:00:01] Prevents Nc7+.} 10. Nd6+ $1 {[%emt 0:02:24]} Bxd6 {[%emt 0:00:03]} 11. Bxd6 {[%emt 0:00:02]} Ne7 {[%emt 0:01:48]} 12. O-O {[%emt 0:03:54]} (12. Qd2 {looks sharper.} O-O 13. O-O Ne8 14. Ba3) 12... O-O {[%emt 0:01:24]} 13. c3 {[%emt 0:01:40]} (13. Qd2 {is more complex.} Ne8 14. Ba3 Bc6 15. Qb4) 13... Re8 {[%emt 0:05:17]} 14. Ng3 {[%emt 0:04:44]} Ng6 {[%emt 0:00:28]} 15. f4 {[%emt 0:01:47]} Ne4 {[%emt 0:02:29]} 16. Nxe4 {[%emt 0:06:59]} ({But not} 16. Bxe4 dxe4 17. Qe2 (17. Nxe4 $2 Bc6 $19) 17... a6 $15) 16... dxe4 {[%emt 0:00:02]} 17. Bxe4 {[%emt 0:00:02] aiming for f5. This bishop pair is nice.} Bb5 $1 {[%emt 0:00:02][%csl LRd6,LRf1]} 18. Ba3 {[%emt 0:00:02]} Bxf1 {[%emt 0:00:06]} 19. Qxf1 {[%emt 0:00:02]} Qc7 {[%emt 0:00:47]} 20. g3 {[%emt 0:00:11]} h6 {[%emt 0:01:53]} 21. Qd3 {[%emt 0:01:36]} Nf8 {[%emt 0:00:29]} 22. Rc1 {[%emt 0:00:19]} (22. Qb5 $5 {[%cal Rb5b7]}) 22... Nd7 {[%emt 0:00:10]} 23. c4 {[%emt 0:01:43]} Rcd8 {[%emt 0:02:15][%cal Oe6e5]} 24. Qe3 {[%emt 0:02:26] [#]} (24. Qc3 $11) 24... e5 $1 $17 {[%emt 0:02:55]} 25. fxe5 {[%emt 0:02:38]} Nxe5 {[%emt 0:00:02]} 26. dxe5 {[%emt 0:01:59]} (26. Bd5 {was worth a try.} Ng4 27. Qf4 Qxf4 28. gxf4) 26... Qxe5 $19 {[%emt 0:00:02]} 27. Re1 {[%emt 0:00:01][%cal Oe4h7] And now Bh7+! would win.} f5 {[%emt 0:00:03]} 28. Bxb7 {[%emt 0:00:03]} Qxe3+ {[%emt 0:00:02]} 29. Rxe3 {[%emt 0:00:02]} Rxe3 {[%emt 0:00:01]} 30. Kf2 {[%emt 0:00:28] [#]} Rxa3 {[%emt 0:01:08] Black is clearly winning.} 31. bxa3 {[%emt 0:00:03][%mdl 4096] Endgame KR-KB} Rd3 {[%emt 0:01:14]} 32. c5 {[%emt 0:03:03]} Rc3 {[%emt 0:00:02]} 33. c6 {[%emt 0:00:15]} Kf7 {[%emt 0:00:05]} 34. Ke2 {[%emt 0:00:04]} (34. a4 $142) 34... Ke7 {[%emt 0:00:09]} 35. Kd2 {[%emt 0:00:04]} Rc5 {[%emt 0:00:01]} 36. Kd3 {[%emt 0:00:13]} Kd6 {[%emt 0:00:04]} 37. h4 {[%emt 0:00:41]} Ra5 {[%emt 0:00:11] Weighted Error Value: White=0.54/Black=0.19 (very precise)} 0-1

[Event "Slovakia Open 2022"]
[Site "Bratislava"]
[Date "2022.10.01"]
[Round "5.10"]
[White "Lecky, Juraj"]
[Black "Kushko, Dmitriy"]
[Result "1/2-1/2"]
[ECO "E92"]
[WhiteElo "2070"]
[BlackElo "2302"]
[Annotator "TA"]
[PlyCount "56"]
[EventDate "2022.09.30"]
[EventCountry "SVK"]
[SourceTitle "playchess.com"]
[Source "ChessBase"]
[SourceQuality "1"]
[TimeControl "2700+10"]

{[%evp 16,56,45,0,38,25,27,-140,-137,-141,-141,-143,-137,-229,-220,-212,-168,-165,-177,-197,-107,-171,-115,-222,-234,-466,-468,-480,-457,-568,-535,-638,-635,-731,-715,-699,-714,-699,-663,-673,-673,-1027,-1014]} 1. d4 {[%emt 0:00:04]} d6 {[%emt 0:00:05]} 2. Nf3 {[%emt 0:00:01]} g6 {[%emt 0:00:01]} 3. c4 {[%emt 0:00:01]} Bg7 {[%emt 0:00:01]} 4. Nc3 {[%emt 0:00:10]} Nf6 {[%emt 0:00:02]} 5. e4 {[%emt 0:00:01]} O-O {[%emt 0:00:02]} 6. Be2 {[%emt 0:00:00]} e5 {[%emt 0:00:01]} 7. Be3 {[%emt 0:00:02]} Ng4 {[%emt 0:00:07]} 8. Bg5 {[%emt 0:00:00]} f6 {[%emt 0:00:01]} 9. Bc1 {[%emt 0:00:00]} exd4 {[%emt 0:01:31] has lost popularity (9...Nc6). E92: King's Indian: Classical: 6 Be2 e5: 7 dxe5, 7 Be3 and Petrosian System without 7...Nbd7.} 10. Nxd4 {[%emt 0:00:52]} ({Reject} 10. Qxd4 Kh8 $11) 10... f5 {[%emt 0:00:02]} 11. exf5 $2 {[%emt 0:01:43] [#]} (11. h3 $11 Ne5 12. exf5) 11... Nxf2 $1 $17 {[%emt 0:00:25][%mdl 576] Decoy. Black is clearly better.} 12. Kxf2 {[%emt 0:04:03]} Qh4+ {[%emt 0:00:28]} 13. g3 {[%emt 0:05:50]} Qxd4+ {[%emt 0:00:19] [#]} 14. Be3 $146 {[%emt 0:00:09]} (14. Qxd4 $17 Bxd4+ 15. Kg2) ({Predecessor:} 14. Qxd4 Bxd4+ 15. Kg2 Bxc3 16. bxc3 Bxf5 17. Re1 Nd7 18. Bh6 Be4+ 19. Kg1 Rfe8 20. Bg4 {0-1 (45) Kabanov,N (2507)-Schebler,G (2463) Pardubice 2004}) 14... Rxf5+ $19 {[%emt 0:02:33]} 15. Bf3 {[%emt 0:00:01]} Qxd1 {[%emt 0:04:56]} 16. Rhxd1 {[%emt 0:00:26]} Nc6 {[%emt 0:01:25]} 17. Kg2 {[%emt 0:08:00] [#]} Be6 {[%emt 0:01:54]} (17... Rxf3 $1 $19 {[%mdl 512]} 18. Kxf3 Ne5+ 19. Kg2 Nxc4) 18. Nd5 {[%emt 0:05:33]} (18. Be4 $17) 18... Raf8 {[%emt 0:00:09]} ({Inferior is} 18... Bxb2 19. Rab1 Rxf3 20. Kxf3 Ne5+ 21. Kg2 Nxc4 22. Bf4 Bxd5+ 23. Rxd5 $17) (18... Rf7 $19 19. c5 Ne5) 19. Nf4 {[%emt 0:08:55]} (19. Bg4 $17) 19... Bxc4 {[%emt 0:00:50]} 20. Rdc1 $2 {[%emt 0:00:01]} (20. Rd2) 20... Bxb2 {[%emt 0:01:24] Black is clearly winning.} 21. Rxc4 {[%emt 0:01:07] Black must now prevent Rb1.} Bxa1 {[%emt 0:00:02]} 22. Be4 {[%emt 0:03:07]} Ra5 {[%emt 0:01:09]} 23. Bd5+ {[%emt 0:02:47]} Kh8 {[%emt 0:00:21]} 24. Nxg6+ {[%emt 0:00:53]} hxg6 {[%emt 0:01:09]} 25. Rh4+ {[%emt 0:00:01]} Kg7 {[%emt 0:00:01]} 26. Bh6+ {[%emt 0:02:53]} Kf6 {[%emt 0:00:02]} 27. Rf4+ {[%emt 0:00:03]} Ke5 {[%emt 0:00:02]} 28. Bxf8 {[%emt 0:00:27] Hoping for Bb3.} Kxd5 {[%emt 0:00:07][%mdl 32768] Weighted Error Value: White=1.04/Black=0.27 (precise) . An unexpected result.} 1/2-1/2

[Event "Slovakia Open 2022"]
[Site "Bratislava"]
[Date "2022.10.01"]
[Round "5.11"]
[White "Rosol, Alexander"]
[Black "Machata, Martin"]
[Result "0-1"]
[ECO "A04"]
[WhiteElo "2041"]
[BlackElo "2212"]
[Annotator "TA"]
[PlyCount "46"]
[EventDate "2022.09.30"]
[EventCountry "SVK"]
[SourceTitle "playchess.com"]
[Source "ChessBase"]
[SourceQuality "1"]
[TimeControl "2700+10"]

{[%evp 16,46,-7,-19,-8,-24,0,-21,-16,-25,-29,-36,-41,-47,-28,-68,0,0,0,-95,-74,-68,-68,-61,-87,-328,-316,-323,-318,-575,-558,-1120,-1105]} 1. e4 {[%emt 0:00:05]} c5 {[%emt 0:00:04]} 2. Nf3 {[%emt 0:00:22]} g6 {[%emt 0:00:03]} 3. d3 {[%emt 0:00:16]} Bg7 {[%emt 0:00:02]} 4. g3 {[%emt 0:00:04]} Nc6 {[%emt 0:00:02]} 5. Bg2 {[%emt 0:00:02]} d6 {[%emt 0:00:02]} 6. O-O {[%emt 0:00:08]} e5 {[%emt 0:00:10]} 7. c3 {[%emt 0:00:27]} Nge7 {[%emt 0:00:00]} 8. Nbd2 {[%emt 0:00:33][%cal Bb1d2,Bd2c4,Bc4e3,Be3c4][%mdl 32]} O-O {[%emt 0:00:00]} 9. a4 {[%emt 0:00:11]} Rb8 {[%emt 0:00:24] A04: Unusual lines after 1 Nf3 and King's Indian Attack.} 10. Nc4 {[%emt 0:00:10]} b6 {[%emt 0:00:20]} 11. Be3 {[%emt 0:01:01]} d5 {[%emt 0:04:35] [#] The position is equal.} 12. exd5 $146 {[%emt 0:01:18]} ({Predecessor:} 12. Na3 Ba6 13. Nb5 d4 14. cxd4 cxd4 15. Bd2 h6 16. Ne1 Qd7 17. f4 f5 18. fxe5 Nxe5 {0-1 (31) Poelsterl,H (1927)-Kordts,W (2121) Nuremberg 2006}) 12... Nxd5 {[%emt 0:00:28]} 13. Bc1 {[%emt 0:00:56]} h6 {[%emt 0:03:05]} 14. Re1 {[%emt 0:00:41][%cal Rf3e5]} Re8 {[%emt 0:02:08]} ({Don't play} 14... Bg4 15. h3 Bxf3 16. Qxf3 $16) 15. Ne3 {[%emt 0:02:05] [#] Black must now prevent Nxd5.} Nde7 {[%emt 0:07:59] Black is more active.} (15... Be6 $15) 16. Nc4 $1 $11 {[%emt 0:03:29]} Nd5 {[%emt 0:03:23]} 17. d4 {[%emt 0:04:12]} (17. Ne3 $1 $11 Nxe3 18. Rxe3) 17... cxd4 {[%emt 0:03:17]} (17... exd4 {is more complex.} 18. Rxe8+ Qxe8 19. cxd4 Be6) 18. cxd4 {[%emt 0:00:16]} ({But not} 18. Nxd4 exd4 19. Rxe8+ Qxe8 $17) 18... exd4 {[%emt 0:01:31]} 19. Rxe8+ {[%emt 0:01:04]} Qxe8 {[%emt 0:00:01]} 20. Nxd4 $2 {[%emt 0:01:25] [#] Loses the game.} Nxd4 $19 {[%emt 0:00:10]} 21. Bxd5 {[%emt 0:00:04]} Be6 {[%emt 0:01:56]} 22. Be3 $2 {[%emt 0:03:40]} (22. Nd6 {keeps fighting.} Qd7 23. Bxe6 Nxe6 24. Ra3) 22... Bxd5 {[%emt 0:01:31]} 23. Bxd4 {[%emt 0:00:18]} Qe4 {[%emt 0:00:13] Weighted Error Value: White=0.99/Black=0.13 (very precise)} 0-1